Cogmind - Beta 16.1 @@@ ROGUE MODE // 2026.06.21 @ 08:30:17 Player: Godsword Result: Self-destructed Performance ------------- Evolutions (1) 500 Regions Visited (2) 400 Robots Destroyed (9) 45 Value Destroyed (190) 190 Prototype IDs (0) 0 Alien Tech Used (0) 0 Bonus (0) 0 TOTAL SCORE: 1135 Bonus ------- None Cogmind --------- Core Integrity 396/400 Matter 192/300 Energy 159/160 System Corruption 3% Temperature Cool (3) Movement Flying (34) Location -9/Materials Parts ------- > --- POWER (1) -------- Light Nuclear Core > --- PROPULSION (3) --- Flight Unit Flight Unit Flight Unit > --- UTILITY (3) ------ Targeting Computer Propulsion Shielding Hacking Suite > --- WEAPON (2) ------- (None) > --- INVENTORY (5) ---- Light Ion Engine Backup Power I High-capacity Matter Pod (0) Sensor Array Peak State ------------ > --- POWER ------------ Light Nuclear Core > --- PROPULSION ------- Flight Unit Flight Unit Flight Unit > --- UTILITY ---------- Targeting Computer Propulsion Shielding Hacking Suite > --- WEAPON ----------- Grenade Launcher > --- INVENTORY -------- Light Ion Engine Backup Power I Medium Matter Pod [Rating: 12] Favorites ----------- Power Light Nuclear Core Engine Backup Power I Power Core Light Nuclear Core Propulsion Flight Unit Hover Unit Hover Unit Flight Unit Flight Unit Utility Targeting Computer Processor Targeting Computer Hackware Hacking Suite Protection Propulsion Shielding Weapon Grenade Launcher Launcher Grenade Launcher Build | -11 -10 -9 ------- Run | Yrd Mat Mat Slots Evolved 2 | . . 2 Power . | . . . Propulsion 1 | . . 1 Utility 1 | . . 1 Weapon . | . . . Parts Attached 9 | . 6 3 Power 1 | . 1 . Engine . | . . . Core 1 | . 1 . Reactor . | . . . Propulsion 4 | . 3 1 Treads . | . . . Leg . | . . . Wheel . | . . . Hover 1 | . 1 . Flight 3 | . 2 1 Utility 3 | . 1 2 Device . | . . . Storage . | . . . Processor 1 | . 1 . Hackware 1 | . . 1 Protection 1 | . . 1 Artifact . | . . . Weapon 1 | . 1 . Energy Gun . | . . . Energy Cannon . | . . . Ballistic Gun . | . . . Ballistic Cannon . | . . . Launcher 1 | . 1 . Special Weapon . | . . . Impact Weapon . | . . . Slashing Weapon . | . . . Piercing Weapon . | . . . Special Melee Weapon . | . . . Unidentified Prototypes . | . . . Corrupted Parts 1 | . . 1 System Corruption 3 | . . 3 Parts Lost 1 | . . 1 Power . | . . . Propulsion . | . . . Utility . | . . . Weapon 1 | . . 1 Highest Loss Streak 1 | . . 1 To Critical Strikes . | . . . Average Backups 2 | . 1 2 Power 1 | . 1 1 Propulsion . | . . . Utility . | . . 1 Weapon . | . . . Tool/Special . | . . . Unused Backups 2 | . . 2 Power 1 | . . 1 Propulsion . | . . . Utility 1 | . . 1 Weapon . | . . . Tool/Special . | . . . Average Slot Usage (%) 53 | . 32 77 Engine 2 | . . 4 Core 5 | . 4 6 Hover 2 | . 4 . Flight 21 | . 11 33 Processor 5 | . 1 11 Protection 4 | . . 9 Launcher 11 | . 11 11 Peak Build Rating 12 | . 7 12 Average Rating 5 | . 3 8 On Entrance 2 | . . 7 Avg Prop Armor Cover (%) . | . . . Naked Turns 8 | . 8 . Heaviest Build 9 | . 8 9 Greatest Support 12 | 3 8 12 Greatest Overweight (x) . | . . . Average Overweight (x) . | . . . Largest Inventory Capacity 5 | 5 5 5 Average Capacity 5 | 5 5 5 Most Carried 5 | 1 4 5 Average Carried 2 | . 1 2 Final Capacity 5 | 5 5 5 Final Carried 4 | 1 4 4 Class Distribution -------------------- 100% | Mutant Dominant Class ---------------- Mutant | -10/Materials Mutant | -9/Materials Resources | -11 -10 -9 ----------- Run | Yrd Mat Mat Matter Collected 347 | 192 155 . Remotely . | . . . Salvage Created 139 | . 139 . Parts 10 | . 9 1 Haulers Intercepted . | . . . Recyclers Shooed . | . . . Parts Field Recycled . | . . . Retrieved Matter . | . . . Parts Self-Destructed . | . . . Prevented . | . . . Parts Restored . | . . . Kills | -11 -10 -9 ------- Run | Yrd Mat Mat Combat Hostiles Destroyed 5 | . 5 . AOE 5 | . 5 . Classes Destroyed 6 | . 5 1 Worker 1 | . 1 . Recycler 1 | . 1 . Operator 1 | . . 1 Watcher 1 | . 1 . Swarmer 3 | . 3 . Grunt 2 | . 2 . Best Kill Streak 8 | . 8 1 Combat Bots Only 5 | . 5 . Max Kills in Single Turn 2 | . 2 1 Gunslinging . | . . . Exploded 2 | . 2 . Melee . | . . . Uniques/NPCs Destroyed . | . . . Combat | -11 -10 -9 -------- Run | Yrd Mat Mat Hostile Shots Fired 17 | . 8 9 Missed 12 | . 6 6 Hits 5 | . 2 3 Projectile 5 | . 2 3 Damage Taken 106 | . 63 43 Core 26 | . 22 4 Absorbed by Shields . | . . . Redirected to Shielding 1 | . . 1 Regen/Repaired (Parts) 31 | . . 31 Core Remaining (%) 95 | 100 91 . Volleys Fired 16 | . 10 6 Largest 1 | . 1 1 Hottest 30 | . 30 30 Shots Fired 16 | . 10 6 Gun . | . . . Cannon . | . . . Launcher 16 | . 10 6 Special . | . . . Kinetic . | . . . Thermal . | . . . Explosive 16 | . 10 6 Electromagnetic . | . . . Robot Hit Streak 3 | . 2 3 Robot Miss Streak 2 | . 1 2 Penetration Max . | . . . Secondary Targets . | . . . Shots Hit Robots 4 | . 2 2 Core Hits 16 | . 16 . Critical Kills . | . . . Critical Parts Destroyed . | . . . Critical Strikes . | . . . Melee Attacks . | . . . Impact . | . . . Slashing . | . . . Piercing . | . . . Sneak Attacks . | . . . Combat Hostiles . | . . . Follow-up Attacks . | . . . Damage Inflicted 824 | . 572 252 Guns . | . . . Cannons . | . . . Explosions 824 | . 572 252 Melee . | . . . Ramming . | . . . Kinetic . | . . . Thermal . | . . . Explosive 805 | . 572 233 Electromagnetic 19 | . . 19 Impact . | . . . Slashing . | . . . Piercing . | . . . Highest Corruption 3 | . . 3 Average Corruption 3 | . . 3 Corruption Purged . | . . . Corruption Blocked . | . . . Overload Shots . | . . . Overflow Damage 51 | . . 51 Projectiles . | . . . Explosions 51 | . . 51 Melee . | . . . Knockbacks . | . . . Impact . | . . . Kinetic . | . . . Secondary . | . . . Self-Inflicted Damage 60 | . 48 12 Shots 3 | . 2 1 Rammed . | . . . Targets Rammed . | . . . Kicked . | . . . Crushed . | . . . Highest Temperature . | . . . Average Temperature . | . . . Received Heat Transfer 15 | . 6 9 Siege Activations . | . . . Martial Activations . | . . . Shielding Activations . | . . . Robots Disrupted . | . . . Combat Hostiles . | . . . Robots Corrupted . | . . . Combat Hostiles . | . . . Parts Fried . | . . . Impact Corruptions . | . . . Robots Melted . | . . . Combat Hostiles . | . . . Parts Melted . | . . . Heat Transferred . | . . . Parts Sabotaged . | . . . Parts Stolen . | . . . Parts Stripped . | . . . Power Chain Reactions . | . . . Alert | -11 -10 -9 ------- Run | Yrd Mat Mat Maximum Alert Level 1 | . 1 . Low Security (%) 90 | 100 80 100 Level 1 9 | . 19 . Level 2 . | . . . Level 3 . | . . . Level 4 . | . . . Level 5 . | . . . High Security . | . . . Max Security . | . . . Peak Influence 202 | . 202 112 Initial 76 | . . 76 Average 94 | . 127 75 Influence Increases 278 | . 212 66 Destroy 0b10 Robot/C 100 | . 100 . Destroy 0b10 Robot/NC 20 | . 15 5 Destroy Leader 22 | . 22 . Successful Hack 6 | . . 6 Disable Machine 60 | . 30 30 Destroy Structure 70 | . 45 25 Influence Decreases 176 | . 30 146 Entered New Map 106 | . . 106 Time Decay 60 | . 30 30 Lost Part 10 | . . 10 Squads Dispatched 1 | . . 1 Investigation . | . . . Extermination . | . . . Reinforcement 1 | . . 1 Assault . | . . . Garrison . | . . . Intercept . | . . . Searches Triggered . | . . . Construction Impeded . | . . . Haulers Reinforced . | . . . Active Scanning Responses . | . . . Cargo Convoy Interrupts . | . . . Stealth | -11 -10 -9 --------- Run | Yrd Mat Mat Distress Signals 1 | . 1 . Communications Jammed . | . . . Distress Signals . | . . . Times Spotted 15 | . 6 9 Peak Tracking Total 7 | . 3 7 Tactical Retreats . | . . . Traps | -11 -10 -9 ------- Run | Yrd Mat Mat Traps Triggered . | . . . Indirectly . | . . . Trap Hack Attempts . | . . . Triggered . | . . . Disarmed . | . . . Reprogrammed . | . . . Reused . | . . . Traps Extracted . | . . . Installed . | . . . Triggered . | . . . Machines | -11 -10 -9 ---------- Run | Yrd Mat Mat Machines Disabled 4 | . 2 2 Max in Single Turn 2 | . 1 2 Machines Repaired . | . . . Machines Dismantled . | . . . Machines Sabotaged . | . . . Overloaded Fab Kills . | . . . Hacking | -11 -10 -9 --------- Run | Yrd Mat Mat Machines Accessed 2 | . 1 1 Terminals . | . . . Fabricators . | . . . Repair Stations 1 | . . 1 Recycling Units 1 | . 1 . Scanalyzers . | . . . Garrison Access . | . . . Total Hacks 10 | . 4 6 Successful 5 | . 2 3 Failed 5 | . 2 3 Catastrophic 1 | . . 1 Database Lockouts . | . . . Manual . | . . . Terminals . | . . . Fabricators . | . . . Repair Stations 6 | . . 6 Recycling Units 4 | . 4 . Scanalyzers . | . . . Garrison Access . | . . . Terminal Hacks . | . . . Fabricator Hacks . | . . . Repair Station Hacks 3 | . . 3 Scan Component 1 | . . 1 Repair 1 | . . 1 Refit 1 | . . 1 Recycling Unit Hacks 2 | . 2 . Retrieve Matter 1 | . 1 . Retrieve Components 1 | . 1 . Scanalyzer . | . . . Garrison Access Hacks . | . . . Unauthorized Hacks . | . . . Terminals . | . . . Fabricators . | . . . Repair Stations . | . . . Recycling Units . | . . . Scanalyzers . | . . . Garrison Access . | . . . Data Cores Recovered . | . . . Used . | . . . Hacking Detections 2 | . 1 1 Full Trace Events . | . . . Feedback Events . | . . . Feedback Blocked . | . . . Robot Schematics Acquired . | . . . Robots Built . | . . . Authchips . | . . . Time . | . . . Total Robot Build Rating . | . . . Part Schematics Acquired . | . . . Parts Built . | . . . Authchips . | . . . Time . | . . . Total Part Build Rating . | . . . Part Studies Acquired . | . . . Parts Repaired 1 | . . 1 Time 38 | . . 38 Parts Recycled . | . . . Recycled Matter . | . . . Retrieved Matter . | . . . Retrieved Components 1 | . 1 . Parts Scanalyzed . | . . . Part Schematics Acquired . | . . . Parts Damaged . | . . . Bothacking | -11 -10 -9 ------------ Run | Yrd Mat Mat Used RIF Installer . | . . . Robots Hacked . | . . . Non-combat . | . . . Combat . | . . . Robot Hacks Applied . | . . . Relay Couplers Released . | . . . Fabnet Peak Effective % . | . . . Robots Rewired . | . . . Allies Hacked . | . . . Hacks Repelled . | . . . Allies | -11 -10 -9 -------- Run | Yrd Mat Mat Total Allies . | . . . Largest Group . | . . . Highest-Rated Group . | . . . Highest-Rated Ally . | . . . Total Orders . | . . . Ally Attacks . | . . . Total Damage . | . . . Kills . | . . . Allies Corrupted . | . . . Allies Melted . | . . . Intel | -11 -10 -9 ------- Run | Yrd Mat Mat Active Infowar (turns) . | . . . Robot Analysis Total . | . . . Derelict Logs Recovered . | . . . Drone Launches . | . . . Drone Recoveries . | . . . Exploration | -11 -10 -9 ------------- Run | Yrd Mat Mat Turns Passed 181 | 15 89 77 Spaces Moved 210 | 27 130 53 Core 58 | 27 31 . Treads . | . . . Legs . | . . . Wheels . | . . . Hover 19 | . 19 . Flight 133 | . 80 53 Fastest Speed 34 | 50 37 34 Average Speed 41 | 50 43 34 Slowest Speed 60 | 50 60 34 Overloaded Moves . | . . . Propulsion Burnouts . | . . . Robots Hopped . | . . . Potential Cave-ins . | . . . Cave-ins Triggered . | . . . Exploration Rate (%) 13 | 3 28 9 Regions Visited 2 Branch Regions . Pre-discovered Areas . | . . . Known Exits Taken . | . . . Unknown Exits Taken 2 | 1 1 . Scrap Searched . | . . . Spaces Dug . | . . . Terrain Destroyed 78 | . 55 23 Melee . | . . . Projectile . | . . . AOE 78 | . 55 23 Terrain Rammed . | . . . Walls Destroyed . | . . . Machines Disabled . | . . . Actions | -11 -10 -9 --------- Run | Yrd Mat Mat Total 281 | 27 149 105 Wait 38 | . . 38 Move 208 | 26 129 53 Hop . | . . . Pick Up 7 | 1 3 3 Fast Attach 7 | . 6 1 Attach 2 | . . 2 Detach . | . . . Swap 1 | . . 1 Drop 2 | . 1 1 Fire 16 | . 10 6 Melee . | . . . Ram . | . . . Kick . | . . . Crush . | . . . Escape Stasis . | . . . Rewire . | . . . Trap . | . . . Miscellaneous . | . . . Route ------- -11/Scrapyard -10/Materials -9/Materials History --------- Turn | Location | Event 6 | -11/Scrapyard | Discovered new exit (range 15) 16 | -11/Scrapyard | Entered Materials 92 | -10/Materials | Discovered new exit (range 7) 105 | -10/Materials | Entered another Materials area 105 | -9/Materials | Evolved 2 slots: Propulsion x1, Utility x1 149 | -9/Materials | Repaired Lgt. Nuclear Core 182 | -9/Materials | Self-destructed Last Messages --------------- 00159_ Destroyed Datajack. 00163_ O-16 Technician uses terminal to summon reinforcements. 00163_ ALERT: Hostiles spotted, dispatching reinforcements to Terminal M004. 00163_ O-16 Technician locks terminal. 00163_ Destroyed Hover Unit. 00163_ Destroyed Lgt. Ion Engine. 00165_ Destroyed Hover Unit. 00165_ O-16 Technician destroyed. 00169_ Neutrino Reactor explodes. 00169_ Terminal disabled. 00170_ Acquired Corrupted Hacking Suite. 00170_ Integrated Corrupted Hacking Suite (+3). 00173_ Acquired Sensor Array. 00175_ Acquired Hcp. Matter Pod. 00176_ Dropped Med. Matter Pod. 00177_ T-07 Excavator is excavating. 00181_ Grenade Launcher destroyed. 00181_ T-07 Excavator is excavating. Map ----- +----------------------------------------------------+ | ?????????????????????????????????????????????????? | | ?????????????????????????????????????????????????? | | ?????????????????????????????????????????????????? | | ?????????????????????????????????????????????????? | | ?????????????????????????????????????????????????? | | ?????????????????????????????????????????????????? | | ?????????????????????????????????????????????????? | | ?????????????????????????????????????????????????? | | ?????????????????????????????????????????????????? | | ?????????????????????????????????????????????????? | | ?????????????????????????????????????????????????? | | ?????????????????????????????????????????????????? | | ?????????????????????????????????????????????????? | | #######################+####?????????????????????? | | #?????????????????????? | | #?????????????????????? | | ^""" #?????????????????????? | | ##+############# m """ #?????????????????????? | | ?# # """ #?????????????????????? | | ?# # ]/ #?????????????????????? | | ?#""" # ]/ #?????????????????????? | | ?#"R # !!! #?????????????????????? | | ?#""" !# ! ##????????????????????? | | ?# # !! #????????????????????? | | ?######## # #### #????????????????????? | | ????????# ## #??# @ #????????????????????? | | ????????# ## #??# s ???????????????? | | ????????# ## #??# s #????????????? | | ????????### ###### #??# s #????????????? | | ??????????##?????#+#??## ##t## #????????????? | | ???????????????????????# ##??#??? #????????????? | | ???????????????????????# ?????????????????????? | | ??????????????????????? b ?????????????????????? | | ??????????????????????? g ##????????????????????? | | ??????????????????????? ?????????????????????? | | ??????????????????????? ?????????????????????? | | ?????????????????????? # #?????????????????????? | | ?????????????????????? # #?????????????????????? | | ?????????????????????? ? #?????????????????????? | | ???????????????????????? o ??????????????????????? | | ???????????????????????? r??????????????????????? | | ?????????????????????????????????????????????????? | | ?????????????????????????????????????????????????? | | ?????????????????????????????????????????????????? | | ?????????????????????????????????????????????????? | | ?????????????????????????????????????????????????? | | ?????????????????????????????????????????????????? | | ?????????????????????????????????????????????????? | | ?????????????????????????????????????????????????? | | ?????????????????????????????????????????????????? | +----------------------------------------------------+ Best States ------------- Heat Dissipation 28 Energy Generation 14 Energy Capacity 160 Matter Stores 292 Matter Capacity 300 Sight Range 16 Terrain Scan Density 10 Propulsion Shielding 33 Evasion (%) 63 Targeting Accuracy 5 Offensive Hacking 10 Item Schematics ----------------- None Robot Schematics ------------------ None Fabricated ------------ Nothing Repaired ---------- Lgt. Nuclear Core | 38% | -9/Materials Studied --------- None Alien Tech Used ----------------- None Achievements -------------- None Challenges ------------ None Game ------ Seed MetamassSurveybotFlail Manual? 0 Play Time 00:05:01 Cumulative 40.9 hours Start 2026.06.21 @ 08:26:26 End 2026.06.21 @ 08:30:17 Sessions 1 Manual Loads 0 Difficulty Rogue Special Mode None Game No. 101 Rogue 101 Adventurer 0 Explorer 0 Win Type - Total 3 Types 3/0/0/0/0/0/0/0/0/0 Lore% 41 Gallery% 35 Achievement% 36 Wizard Run 0 Options --------- Layout 1 ASCII 0 Keyboard 0 Movement Mouse Keybinds 0 Fullscreen 1 Font 16/SmallcapsGlow Map View 50x40 Zoom Use 0% Tactical HUD 1 Map Filters NONE Filters NONE Steam SD RUN: 885192bd-bbf2-404a-8650-c6a6f8c50f16